[Event "Championnat d'Europe Rapide"]
[Date "2024.12.08"]
[White "Sarana, Alexey"]
[Black "Grigorov, Grigor"]
[WhiteElo "2674"]
[BlackElo "2497"]
[Round "8.5"]
[Result "1/2-1/2"]
[TimeControl "900+10"]

1. d4 {[%emt 00:10:51] [%clk 00:15:19]} Nf6 {[%clk 00:15:18]} 2. c4 {[%emt
00:00:02] [%clk 00:15:28]} e6 {[%emt 00:00:03] [%clk 00:15:25]} 3. Nc3 {[%emt
00:00:01] [%clk 00:15:37]} Bb4 {[%emt 00:00:04] [%clk 00:15:31]} 4. e3 {[%emt
00:00:01] [%clk 00:15:45]} c5 {[%emt 00:00:07] [%clk 00:15:34]} 5. Bd3 {[%emt
00:00:04] [%clk 00:15:52]} O-O {[%emt 00:00:27] [%clk 00:15:16]} 6. Nge2 {[%emt
00:00:05] [%clk 00:15:57]} cxd4 {[%emt 00:01:11] [%clk 00:14:16]} 7. exd4 {[%emt
00:00:02] [%clk 00:16:04]} d5 {[%emt 00:00:02] [%clk 00:14:24]} 8. c5 {[%emt
00:00:02] [%clk 00:16:12]} Nc6 {[%emt 00:01:24] [%clk 00:13:10]} 9. O-O {[%emt
00:00:15] [%clk 00:16:08]} e5 {[%emt 00:00:34] [%clk 00:12:46]} 10. a3 {[%emt
00:00:01] [%clk 00:16:16]} Bxc3 {[%emt 00:00:11] [%clk 00:12:46]} 11. bxc3
{[%emt 00:00:01] [%clk 00:16:25]} h6 {[%emt 00:00:09] [%clk 00:12:46]} 12. Rb1
{[%emt 00:00:02] [%clk 00:16:33]} Re8 {[%emt 00:00:02] [%clk 00:12:54]} 13. h3
{[%emt 00:01:07] [%clk 00:15:36]} Qc7 {[%emt 00:00:03] [%clk 00:13:02]} 14. Re1
{[%emt 00:00:29] [%clk 00:15:17]} b6 {[%emt 00:00:11] [%clk 00:13:01]} 15. Bb5
{[%emt 00:00:09] [%clk 00:15:18]} Bf5 {[%emt 00:02:12] [%clk 00:10:58]} 16. dxe5
{[%emt 00:02:22] [%clk 00:13:06]} Nxe5 {[%emt 00:02:08] [%clk 00:09:00]} 17.
cxb6 {[%emt 00:01:55] [%clk 00:11:22]} axb6 {[%emt 00:00:09] [%clk 00:09:00]}
18. Bxe8 {[%emt 00:00:27] [%clk 00:11:06]} Bxb1 {[%emt 00:00:05] [%clk
00:09:05]} 19. Bb5 {[%emt 00:00:02] [%clk 00:11:13]} Qc5 {[%emt 00:02:27] [%clk
00:06:48]} 20. a4 {[%emt 00:01:49] [%clk 00:09:35]} Be4 {[%emt 00:01:43] [%clk
00:05:15]} 21. Be3 {[%emt 00:00:09] [%clk 00:09:35]} Qc8 {[%emt 00:00:17] [%clk
00:05:08]} 22. Bxb6 {[%emt 00:03:29] [%clk 00:06:16]} Nf3+ {[%emt 00:00:35]
[%clk 00:04:43]} 23. gxf3 {[%emt 00:03:25] [%clk 00:03:02]} Bxf3 {[%emt
00:00:03] [%clk 00:04:49]} 24. Kh2 {[%emt 00:00:03] [%clk 00:03:09]} Qb8+ {[%emt
00:00:06] [%clk 00:04:54]} 25. Kg1 {[%emt 00:00:01] [%clk 00:03:18]} Qc8 {[%emt
00:01:05] [%clk 00:03:58]} 26. Kh2 {[%emt 00:00:02] [%clk 00:03:26]} Qb8+ {[%emt
00:00:25] [%clk 00:03:43]} 27. Kg1 {[%clk 00:03:35]} Qc8 {[%emt 00:00:36] [%clk
00:03:17]} 28. Kh2 {[%emt 00:00:02] [%clk 00:03:44]} Qb8+ {[%emt 00:00:03] [%clk
00:03:12]} 1/2-1/2

[Site "Europe Echecs"]

[Event "Championnat d'Europe Rapide"]
[Date "2024.12.08"]
[White "Kadric, Denis"]
[Black "Deac, Bogdan-Daniel"]
[WhiteElo "2544"]
[BlackElo "2696"]
[Round "8.6"]
[Result "1-0"]
[TimeControl "900+10"]

1. e4 {[%clk 00:15:18]} e5 {[%emt 00:00:02] [%clk 00:15:18]} 2. Nf3 {[%emt
00:00:02] [%clk 00:15:26]} Nc6 {[%emt 00:00:03] [%clk 00:15:26]} 3. Bc4 {[%emt
00:00:01] [%clk 00:15:35]} Nf6 {[%emt 00:00:04] [%clk 00:15:32]} 4. d3 {[%emt
00:00:01] [%clk 00:15:43]} Bc5 {[%emt 00:00:06] [%clk 00:15:37]} 5. c3 {[%emt
00:00:11] [%clk 00:15:42]} a6 {[%emt 00:00:03] [%clk 00:15:44]} 6. Bg5 {[%emt
00:00:17] [%clk 00:15:35]} h6 {[%emt 00:00:02] [%clk 00:15:53]} 7. Bh4 {[%emt
00:00:01] [%clk 00:15:44]} Be7 {[%emt 00:00:02] [%clk 00:16:00]} 8. Bg3 {[%emt
00:00:11] [%clk 00:15:43]} d6 {[%emt 00:00:01] [%clk 00:16:09]} 9. a4 {[%emt
00:00:19] [%clk 00:15:35]} g6 {[%emt 00:00:02] [%clk 00:16:16]} 10. h3 {[%emt
00:00:26] [%clk 00:15:19]} Nh5 {[%emt 00:01:58] [%clk 00:14:28]} 11. Bh2 {[%emt
00:00:01] [%clk 00:15:27]} Bg5 {[%emt 00:00:03] [%clk 00:14:36]} 12. Nbd2 {[%emt
00:05:04] [%clk 00:10:33]} Qe7 {[%emt 00:00:53] [%clk 00:13:52]} 13. b4 {[%emt
00:01:28] [%clk 00:09:16]} Bf4 {[%emt 00:01:16] [%clk 00:12:45]} 14. Bg1 {[%emt
00:04:05] [%clk 00:05:21]} Nf6 {[%emt 00:01:10] [%clk 00:11:45]} 15. g3 {[%emt
00:00:37] [%clk 00:04:55]} Bxd2+ {[%emt 00:01:05] [%clk 00:10:50]} 16. Nxd2
{[%emt 00:00:01] [%clk 00:05:04]} Be6 {[%emt 00:00:07] [%clk 00:10:52]} 17. Qb3
{[%emt 00:01:33] [%clk 00:03:42]} Bxc4 {[%emt 00:02:17] [%clk 00:08:45]} 18.
dxc4 {[%clk 00:03:51]} a5 {[%emt 00:03:41] [%clk 00:05:13]} 19. f3 {[%emt
00:00:25] [%clk 00:03:37]} b6 {[%emt 00:02:02] [%clk 00:03:20]} 20. Be3 {[%emt
00:00:37] [%clk 00:03:10]} Qe6 {[%emt 00:00:19] [%clk 00:03:11]} 21. Kf2 {[%emt
00:01:24] [%clk 00:01:57]} Kf8 {[%emt 00:00:03] [%clk 00:03:18]} 22. Kg2 {[%emt
00:00:13] [%clk 00:01:54]} Kg7 {[%emt 00:00:02] [%clk 00:03:25]} 23. Rhb1 {[%emt
00:00:02] [%clk 00:02:03]} Ra7 {[%emt 00:02:08] [%clk 00:01:26]} 24. c5 {[%emt
00:00:16] [%clk 00:01:58]} Qxb3 {[%emt 00:00:14] [%clk 00:01:22]} 25. Rxb3
{[%emt 00:00:21] [%clk 00:01:47]} bxc5 {[%emt 00:00:04] [%clk 00:01:29]} 26. b5
{[%clk 00:01:56]} Ne7 {[%emt 00:00:52] [%clk 00:00:47]} 27. b6 {[%emt 00:00:08]
[%clk 00:01:59]} cxb6 {[%emt 00:00:11] [%clk 00:00:45]} 28. Rxb6 {[%emt
00:00:01] [%clk 00:02:08]} Ned5 {[%emt 00:00:32] [%clk 00:00:23]} 29. exd5
{[%emt 00:01:00] [%clk 00:01:18]} Nxd5 {[%emt 00:00:02] [%clk 00:00:30]} 30.
Rxd6 {[%emt 00:00:24] [%clk 00:01:05]} Nxe3+ {[%emt 00:00:02] [%clk 00:00:38]}
31. Kf2 {[%clk 00:01:14]} Nf5 {[%emt 00:00:06] [%clk 00:00:41]} 32. Rd5 {[%emt
00:00:01] [%clk 00:01:24]} Rb8 {[%emt 00:00:21] [%clk 00:00:30]} 33. Nc4 {[%emt
00:00:01] [%clk 00:01:33]} Rb3 {[%emt 00:00:10] [%clk 00:00:30]} 34. Rc1 {[%emt
00:00:02] [%clk 00:01:40]} Re7 {[%emt 00:00:20] [%clk 00:00:20]} 35. g4 {[%emt
00:01:15] [%clk 00:00:36]} Nh4 {[%emt 00:00:01] [%clk 00:00:28]} 36. Rxe5 {[%emt
00:00:03] [%clk 00:00:44]} Rxe5 {[%emt 00:00:08] [%clk 00:00:30]} 37. Nxe5
{[%emt 00:00:01] [%clk 00:00:53]} Ra3 {[%emt 00:00:09] [%clk 00:00:31]} 38. Nd7
{[%emt 00:00:33] [%clk 00:00:30]} Ra2+ {[%emt 00:00:16] [%clk 00:00:24]} 39. Ke3
{[%emt 00:00:02] [%clk 00:00:39]} Ng2+ {[%emt 00:00:02] [%clk 00:00:32]} 40. Ke4
{[%emt 00:00:17] [%clk 00:00:32]} Rxa4+ {[%emt 00:00:23] [%clk 00:00:19]} 41. c4
{[%emt 00:00:12] [%clk 00:00:30]} Ra3 {[%emt 00:00:08] [%clk 00:00:21]} 42. Nxc5
{[%emt 00:00:21] [%clk 00:00:19]} Re3+ {[%emt 00:00:02] [%clk 00:00:29]} 43. Kd4
{[%clk 00:00:28]} Rxf3 {[%emt 00:00:01] [%clk 00:00:37]} 44. Nd3 {[%emt
00:00:08] [%clk 00:00:31]} Re3 {[%emt 00:00:35] [%clk 00:00:11]} 45. c5 {[%emt
00:00:19] [%clk 00:00:23]} Re8 {[%emt 00:00:02] [%clk 00:00:19]} 46. c6 {[%emt
00:00:03] [%clk 00:00:30]} Rd8+ {[%clk 00:00:28]} 47. Kc5 {[%emt 00:00:16] [%clk
00:00:25]} Ne3 {[%emt 00:00:24] [%clk 00:00:14]} 48. c7 {[%emt 00:00:06] [%clk
00:00:30]} Rc8 {[%emt 00:00:08] [%clk 00:00:16]} 49. Kd6 {[%emt 00:00:05] [%clk
00:00:34]} 1-0

[Site "Europe Echecs"]

[Event "Championnat d'Europe Rapide"]
[Date "2024.12.08"]
[White "Zajic, Milan"]
[Black "Korobov, Anton"]
[WhiteElo "2392"]
[BlackElo "2629"]
[Round "8.7"]
[Result "0-1"]
[TimeControl "900+10"]

1. e4 {[%emt 00:00:01] [%clk 00:15:19]} c5 {[%emt 00:00:03] [%clk 00:15:17]} 2.
Nf3 {[%emt 00:00:02] [%clk 00:15:27]} d6 {[%clk 00:15:26]} 3. d4 {[%emt
00:00:02] [%clk 00:15:35]} cxd4 {[%emt 00:00:01] [%clk 00:15:35]} 4. Nxd4 {[%emt
00:00:02] [%clk 00:15:43]} Nf6 {[%emt 00:00:01] [%clk 00:15:43]} 5. Nc3 {[%emt
00:00:02] [%clk 00:15:52]} a6 {[%emt 00:00:01] [%clk 00:15:52]} 6. Bd3 {[%emt
00:00:02] [%clk 00:16:00]} g6 {[%emt 00:00:10] [%clk 00:15:51]} 7. f3 {[%emt
00:00:38] [%clk 00:15:33]} Qb6 {[%emt 00:00:15] [%clk 00:15:46]} 8. a3 {[%emt
00:00:15] [%clk 00:15:29]} e5 {[%emt 00:00:10] [%clk 00:15:45]} 9. Nb3 {[%emt
00:00:11] [%clk 00:15:29]} Be6 {[%emt 00:00:04] [%clk 00:15:50]} 10. Qe2 {[%emt
00:00:09] [%clk 00:15:30]} Nbd7 {[%emt 00:00:05] [%clk 00:15:55]} 11. Be3 {[%emt
00:00:02] [%clk 00:15:37]} Qc7 {[%emt 00:00:03] [%clk 00:16:03]} 12. O-O-O
{[%emt 00:02:33] [%clk 00:13:14]} h5 {[%emt 00:00:02] [%clk 00:16:11]} 13. Kb1
{[%emt 00:00:11] [%clk 00:13:13]} Rc8 {[%emt 00:00:08] [%clk 00:16:13]} 14. g3
{[%emt 00:00:47] [%clk 00:12:37]} b5 {[%emt 00:00:37] [%clk 00:15:45]} 15. h3
{[%emt 00:00:34] [%clk 00:12:13]} Nb6 {[%emt 00:01:16] [%clk 00:14:38]} 16. f4
{[%emt 00:02:03] [%clk 00:10:21]} Be7 {[%emt 00:00:10] [%clk 00:14:37]} 17. f5
{[%emt 00:00:55] [%clk 00:09:37]} gxf5 {[%emt 00:00:15] [%clk 00:14:32]} 18.
exf5 {[%emt 00:00:02] [%clk 00:09:45]} Bd7 {[%emt 00:02:25] [%clk 00:12:17]} 19.
g4 {[%emt 00:00:30] [%clk 00:09:25]} Na4 {[%emt 00:00:01] [%clk 00:12:25]} 20.
Bd2 {[%emt 00:01:25] [%clk 00:08:10]} Nxc3+ {[%emt 00:03:30] [%clk 00:09:05]}
21. Bxc3 {[%emt 00:00:02] [%clk 00:08:18]} Nd5 {[%emt 00:00:02] [%clk 00:09:14]}
22. Bd2 {[%emt 00:00:39] [%clk 00:07:49]} Nb6 {[%emt 00:00:34] [%clk 00:08:50]}
23. Ba5 {[%emt 00:02:41] [%clk 00:05:17]} Qb8 {[%emt 00:00:16] [%clk 00:08:44]}
24. f6 {[%emt 00:00:57] [%clk 00:04:31]} Bxf6 {[%emt 00:00:13] [%clk 00:08:41]}
25. Rhf1 {[%emt 00:00:43] [%clk 00:03:58]} Bd8 {[%emt 00:00:08] [%clk 00:08:42]}
26. Qf2 {[%emt 00:00:20] [%clk 00:03:49]} Rf8 {[%emt 00:00:01] [%clk 00:08:51]}
27. gxh5 {[%emt 00:00:37] [%clk 00:03:22]} Nc4 {[%emt 00:00:26] [%clk 00:08:35]}
28. Bxd8 {[%emt 00:00:12] [%clk 00:03:21]} Rxd8 {[%emt 00:00:01] [%clk
00:08:43]} 29. h6 {[%emt 00:00:03] [%clk 00:03:27]} Qb6 {[%emt 00:00:51] [%clk
00:08:03]} 30. Qh4 {[%emt 00:00:25] [%clk 00:03:12]} Be6 {[%emt 00:00:06] [%clk
00:08:06]} 31. h7 {[%emt 00:00:20] [%clk 00:03:02]} Kd7 {[%emt 00:00:02] [%clk
00:08:15]} 32. Bf5 {[%emt 00:00:10] [%clk 00:03:02]} Bxf5 {[%emt 00:00:29] [%clk
00:07:56]} 33. Rxf5 {[%emt 00:00:01] [%clk 00:03:11]} Kc8 {[%emt 00:01:21] [%clk
00:06:45]} 34. Rdf1 {[%emt 00:00:48] [%clk 00:02:32]} Qc7 {[%emt 00:00:57]} 35.
Rh5 {[%clk 00:01:56]} Rh8 {[%emt 00:00:10] [%clk 00:06:45]} 36. Qf6 {[%emt
00:00:40] [%clk 00:01:25]} Ne3 {[%emt 00:00:31] [%clk 00:06:24]} 37. Rf2 {[%emt
00:00:12] [%clk 00:01:21]} Nd5 {[%emt 00:00:08] [%clk 00:06:29]} 38. Qxf7 {[%emt
00:00:13] [%clk 00:01:18]} Nf4 {[%emt 00:00:05] [%clk 00:06:34]} 39. Qf5+ {[%emt
00:00:37] [%clk 00:00:51]} Kb8 {[%emt 00:00:52] [%clk 00:05:52]} 40. Rh4 {[%emt
00:00:23] [%clk 00:00:37]} Qe7 {[%emt 00:00:31] [%clk 00:05:32]} 41. Na5 {[%emt
00:00:34] [%clk 00:00:14]} Qxh4 {[%emt 00:00:12] [%clk 00:05:29]} 42. Qf7 {[%emt
00:00:02] [%clk 00:00:22]} Rxh7 {[%emt 00:00:57] [%clk 00:04:42]} 43. Nc6+
{[%emt 00:00:09] [%clk 00:00:23]} Ka8 {[%emt 00:00:01] [%clk 00:04:51]} 0-1

[Site "Europe Echecs"]

[Event "Championnat d'Europe Rapide"]
[Date "2024.12.08"]
[White "Mamedov, Rauf"]
[Black "Horvath, Dominik"]
[WhiteElo "2656"]
[BlackElo "2542"]
[Round "8.8"]
[Result "0-1"]
[TimeControl "900+10"]

1. e4 {[%emt 00:00:02] [%clk 00:15:18]} e5 {[%emt 00:00:02] [%clk 00:15:18]} 2.
Nf3 {[%emt 00:00:03] [%clk 00:15:26]} Nc6 {[%emt 00:00:30] [%clk 00:14:58]} 3.
Bb5 {[%emt 00:00:05] [%clk 00:15:31]} a6 {[%emt 00:00:02] [%clk 00:15:06]} 4.
Ba4 {[%emt 00:00:01] [%clk 00:15:40]} Nge7 {[%emt 00:00:01] [%clk 00:15:15]} 5.
Nc3 {[%emt 00:00:25] [%clk 00:15:25]} Ng6 {[%emt 00:00:04] [%clk 00:15:21]} 6.
a3 {[%emt 00:00:07] [%clk 00:15:29]} Bc5 {[%emt 00:00:16] [%clk 00:15:13]} 7. d3
{[%emt 00:00:03] [%clk 00:15:37]} Nd4 {[%emt 00:00:43] [%clk 00:14:39]} 8. Nxd4
{[%emt 00:00:10] [%clk 00:15:38]} Bxd4 {[%emt 00:00:01] [%clk 00:14:47]} 9. Ne2
{[%emt 00:00:02] [%clk 00:15:46]} Ba7 {[%emt 00:00:27] [%clk 00:14:31]} 10. Ng3
{[%emt 00:00:23] [%clk 00:15:33]} O-O {[%emt 00:00:07] [%clk 00:14:33]} 11. O-O
{[%emt 00:00:49] [%clk 00:14:54]} d5 {[%emt 00:00:40] [%clk 00:14:03]} 12. exd5
{[%emt 00:00:03] [%clk 00:15:03]} Qxd5 {[%emt 00:00:04] [%clk 00:14:08]} 13. Bb3
{[%emt 00:00:17] [%clk 00:14:56]} Qc6 {[%emt 00:00:15] [%clk 00:14:03]} 14. Be3
{[%emt 00:01:10] [%clk 00:13:56]} Nh4 {[%emt 00:02:23] [%clk 00:11:50]} 15. Ne4
{[%emt 00:00:01] [%clk 00:14:06]} Qg6 {[%emt 00:00:01] [%clk 00:11:59]} 16. Ng3
{[%clk 00:14:15]} Bg4 {[%emt 00:01:25] [%clk 00:10:44]} 17. Qc1 {[%emt 00:00:01]
[%clk 00:14:24]} Be2 {[%emt 00:02:03] [%clk 00:08:51]} 18. Re1 {[%emt 00:00:01]
[%clk 00:14:33]} Qc6 {[%emt 00:00:01] [%clk 00:09:00]} 19. Ne4 {[%emt 00:00:48]
[%clk 00:13:55]} Qg6 {[%emt 00:00:01] [%clk 00:09:09]} 20. Ng3 {[%emt 00:01:42]
[%clk 00:12:23]} Qc6 {[%emt 00:00:01] [%clk 00:09:18]} 21. f3 {[%emt 00:01:49]
[%clk 00:10:44]} Bxf3 {[%emt 00:00:35] [%clk 00:08:52]} 22. Bxa7 {[%emt
00:00:23] [%clk 00:10:32]} Bxg2 {[%emt 00:00:39] [%clk 00:08:23]} 23. Bf2 {[%emt
00:01:04] [%clk 00:09:37]} Nf3+ {[%emt 00:02:20] [%clk 00:06:14]} 24. Kxg2
{[%emt 00:00:01] [%clk 00:09:46]} Nxe1+ {[%emt 00:00:01] [%clk 00:06:23]} 25.
Kf1 {[%emt 00:00:01] [%clk 00:09:54]} Nf3 {[%emt 00:00:06] [%clk 00:06:27]} 26.
Ne4 {[%emt 00:01:02] [%clk 00:09:01]} Kh8 {[%emt 00:00:21] [%clk 00:06:17]} 27.
Qe3 {[%emt 00:02:56] [%clk 00:06:16]} Nd4 {[%emt 00:01:14] [%clk 00:05:13]} 28.
Ng3 {[%emt 00:01:04] [%clk 00:05:21]} Nxb3 {[%emt 00:02:43] [%clk 00:02:40]} 29.
cxb3 {[%emt 00:00:01] [%clk 00:05:30]} Qb5 {[%emt 00:00:21] [%clk 00:02:29]} 30.
Rc1 {[%emt 00:01:20] [%clk 00:04:21]} f5 {[%emt 00:00:44] [%clk 00:01:54]} 31.
Ne2 {[%emt 00:00:59] [%clk 00:03:31]} Rad8 {[%emt 00:00:37] [%clk 00:01:28]} 32.
Rc3 {[%emt 00:02:29] [%clk 00:01:12]} Qd5 {[%emt 00:00:32] [%clk 00:01:06]} 33.
Rxc7 {[%emt 00:00:37] [%clk 00:00:46]} f4 {[%emt 00:00:17] [%clk 00:00:58]} 34.
Qe4 {[%emt 00:00:09] [%clk 00:00:47]} Qxe4 {[%emt 00:00:01] [%clk 00:01:07]} 35.
dxe4 {[%clk 00:00:56]} Rd1+ {[%emt 00:00:01] [%clk 00:01:17]} 36. Be1 {[%clk
00:01:06]} f3 {[%clk 00:01:26]} 37. Nc3 {[%clk 00:01:15]} Rc1 {[%clk 00:01:36]}
38. Kf2 {[%emt 00:00:07] [%clk 00:01:18]} Rc2+ {[%emt 00:00:01] [%clk 00:01:45]}
39. Ke3 {[%emt 00:00:05] [%clk 00:01:23]} f2 {[%emt 00:00:02] [%clk 00:01:52]}
40. Bxf2 {[%clk 00:01:32]} Rcxf2 {[%emt 00:00:02] [%clk 00:02:01]} 41. Kd3
{[%emt 00:00:01] [%clk 00:01:41]} b5 {[%emt 00:00:04] [%clk 00:02:08]} 42. Nd5
{[%emt 00:00:06] [%clk 00:01:45]} Rxb2 {[%emt 00:00:20] [%clk 00:01:57]} 43. Kc3
{[%emt 00:00:04] [%clk 00:01:51]} Rxh2 {[%emt 00:00:02] [%clk 00:02:05]} 44. Ra7
{[%emt 00:00:01] [%clk 00:02:00]} Rh6 {[%emt 00:00:05] [%clk 00:02:10]} 45. Kb4
{[%emt 00:00:05] [%clk 00:02:06]} g5 {[%emt 00:00:03] [%clk 00:02:16]} 46. Ne3
{[%emt 00:00:02] [%clk 00:02:15]} Rg6 {[%emt 00:00:06] [%clk 00:02:20]} 47. Ng4
{[%emt 00:00:01] [%clk 00:02:23]} Rf4 {[%emt 00:00:05] [%clk 00:02:25]} 48. Ra8+
{[%emt 00:00:03] [%clk 00:02:29]} Rg8 {[%emt 00:00:01] [%clk 00:02:34]} 49.
Rxg8+ {[%emt 00:00:03] [%clk 00:02:37]} Kxg8 {[%clk 00:02:43]} 0-1

[Site "Europe Echecs"]

[Event "Championnat d'Europe Rapide"]
[Date "2024.12.08"]
[White "Boyer, Mahel"]
[Black "Quparadze, Giga"]
[WhiteElo "2526"]
[BlackElo "2537"]
[Round "8.9"]
[Result "0-1"]
[TimeControl "900+10"]

1. Nf3 {[%emt 00:10:57] [%clk 00:15:18]} c5 {[%emt 00:00:02] [%clk 00:15:19]} 2.
e3 {[%emt 00:00:02] [%clk 00:15:26]} Nf6 {[%emt 00:00:06] [%clk 00:15:23]} 3. d4
{[%emt 00:00:02] [%clk 00:15:34]} e6 {[%emt 00:00:02] [%clk 00:15:31]} 4. Bd3
{[%emt 00:00:07] [%clk 00:15:37]} d5 {[%emt 00:00:03] [%clk 00:15:39]} 5. O-O
{[%emt 00:00:08] [%clk 00:15:38]} Nbd7 {[%emt 00:00:05] [%clk 00:15:44]} 6. b3
{[%emt 00:00:44] [%clk 00:15:04]} g6 {[%emt 00:00:02] [%clk 00:15:52]} 7. c4
{[%emt 00:01:07] [%clk 00:14:07]} Bg7 {[%emt 00:00:02] [%clk 00:16:00]} 8. cxd5
{[%emt 00:00:21] [%clk 00:13:57]} Nxd5 {[%emt 00:00:06] [%clk 00:16:03]} 9. Bb2
{[%emt 00:00:48] [%clk 00:13:19]} O-O {[%emt 00:00:03] [%clk 00:16:09]} 10. Nc3
{[%emt 00:01:25] [%clk 00:12:05]} Nxc3 {[%emt 00:00:03] [%clk 00:16:16]} 11.
Bxc3 {[%emt 00:00:01] [%clk 00:12:14]} b6 {[%clk 00:16:25]} 12. Be4 {[%emt
00:01:09] [%clk 00:11:16]} Rb8 {[%emt 00:00:02] [%clk 00:16:33]} 13. Qe2 {[%emt
00:00:02] [%clk 00:11:23]} Bb7 {[%emt 00:00:09] [%clk 00:16:34]} 14. Bxb7 {[%emt
00:00:05] [%clk 00:11:28]} Rxb7 {[%emt 00:00:02] [%clk 00:16:42]} 15. Rac1
{[%emt 00:00:04] [%clk 00:11:34]} Rc7 {[%emt 00:00:11] [%clk 00:16:41]} 16. dxc5
{[%emt 00:01:59] [%clk 00:09:45]} Bxc3 {[%emt 00:00:07] [%clk 00:16:44]} 17.
Rxc3 {[%emt 00:00:02] [%clk 00:09:53]} Nxc5 {[%emt 00:00:14] [%clk 00:16:40]}
18. e4 {[%emt 00:02:36] [%clk 00:07:27]} Rd7 {[%emt 00:00:27] [%clk 00:16:22]}
19. b4 {[%emt 00:02:47] [%clk 00:04:51]} Nd3 {[%emt 00:00:02] [%clk 00:16:31]}
20. a3 {[%emt 00:00:01] [%clk 00:05:00]} Nf4 {[%emt 00:00:01] [%clk 00:16:39]}
21. Qe3 {[%emt 00:00:02] [%clk 00:05:08]} Qf6 {[%emt 00:00:01] [%clk 00:16:48]}
22. e5 {[%emt 00:00:17] [%clk 00:05:01]} Qf5 {[%emt 00:00:01] [%clk 00:16:57]}
23. Rc4 {[%emt 00:00:20] [%clk 00:04:51]} Nd5 {[%emt 00:00:36] [%clk 00:16:31]}
24. Qh6 {[%emt 00:00:06] [%clk 00:04:55]} f6 {[%emt 00:00:12] [%clk 00:16:29]}
25. exf6 {[%emt 00:01:10] [%clk 00:03:55]} Qxf6 {[%clk 00:16:38]} 26. Qg5 {[%emt
00:01:38] [%clk 00:02:27]} Nf4 {[%emt 00:00:28] [%clk 00:16:20]} 27. Qxf6 {[%emt
00:00:53] [%clk 00:01:44]} Rxf6 {[%emt 00:00:02] [%clk 00:16:28]} 28. g3 {[%emt
00:01:12] [%clk 00:00:42]} Nd3 {[%emt 00:00:18] [%clk 00:16:21]} 29. Ng5 {[%emt
00:00:28] [%clk 00:00:24]} Ne5 {[%emt 00:00:42] [%clk 00:15:48]} 30. Rc8+ {[%emt
00:00:15] [%clk 00:00:20]} Kg7 {[%clk 00:15:56]} 31. Ne4 {[%emt 00:00:18] [%clk
00:00:12]} Rf5 {[%emt 00:01:36] [%clk 00:14:29]} 32. Rfc1 {[%emt 00:00:01] [%clk
00:00:21]} Rd4 {[%emt 00:00:56] [%clk 00:13:44]} 33. R1c7+ {[%emt 00:00:03]
[%clk 00:00:28]} Kh6 {[%emt 00:00:08] [%clk 00:13:46]} 34. Nc3 {[%emt 00:00:23]
[%clk 00:00:15]} Ng4 {[%emt 00:01:16] [%clk 00:12:39]} 35. f4 {[%emt 00:00:10]
[%clk 00:00:16]} e5 {[%emt 00:00:38] [%clk 00:12:12]} 36. Rh8 {[%emt 00:00:06]
[%clk 00:00:19]} Nf6 {[%emt 00:00:01] [%clk 00:12:21]} 37. fxe5 {[%emt
00:00:20]} Rxe5 {[%clk 00:12:28]} 38. Rf7 {[%emt 00:00:08] [%clk 00:00:12]} Re6
{[%emt 00:00:11] [%clk 00:12:28]} 39. Kg2 {[%emt 00:00:10] [%clk 00:00:12]} Rd3
{[%emt 00:00:23] [%clk 00:12:15]} 40. Nb5 {[%emt 00:00:11] [%clk 00:00:11]} Rd2+
{[%emt 00:00:05] [%clk 00:12:20]} 41. Kh3 {[%emt 00:00:10] [%clk 00:00:11]} Ree2
{[%emt 00:00:04] [%clk 00:12:26]} 42. Rxf6 {[%emt 00:00:10] [%clk 00:00:11]} Kg5
{[%emt 00:00:01] [%clk 00:12:35]} 43. Rxg6+ {[%emt 00:00:11] [%clk 00:00:11]}
hxg6 {[%emt 00:00:04] [%clk 00:12:40]} 0-1

[Site "Europe Echecs"]